[Event "CCT Chessable Masters D-III 2024"]
[Site "Online"]
[Date "2024.02.02"]
[Round "1"]
[White "Rakhmanov_Aleksandr"]
[Black "Tabatabaei, M. Amin"]
[Result "1-0"]
[ECO "A20"]
[WhiteElo "2614"]
[BlackElo "2696"]
[Annotator "ChessBase"]
[PlyCount "123"]
[EventDate "2024.01.12"]
[EventType "k.o."]
[EventCountry "NET"]
[SourceTitle "playchess.com"]
[Source "ChessBase"]
[SourceQuality "1"]
[TimeControl "600+2"]

1. c4 {[%emt 0:00:03]} e5 {[%emt 0:00:07]} 2. Nf3 {[%emt 0:00:01]} Nc6 {[%emt 0:00:05]} 3. d4 {[%emt 0:00:01]} exd4 {[%emt 0:00:03]} 4. Nxd4 {[%emt 0:00:00]} Nf6 {[%emt 0:00:00]} 5. Nxc6 {[%emt 0:00:06]} dxc6 {[%emt 0:00:01]} 6. Qxd8+ {[%emt 0:00:26]} Kxd8 {[%emt 0:00:00]} 7. Bg5 {[%emt 0:00:17]} Be6 {[%emt 0:00:11]} 8. e3 {[%emt 0:00:18]} Be7 {[%emt 0:00:43]} 9. Nc3 {[%emt 0:00:13]} h6 {[%emt 0:00:03]} 10. O-O-O+ {[%emt 0:00:17]} Kc8 {[%emt 0:00:02]} 11. Bh4 {[%emt 0:00:09]} a5 {[%emt 0:00:44]} 12. Be2 {[%emt 0:00:09]} a4 {[%emt 0:00:01]} 13. h3 {[%emt 0:00:20]} Re8 {[%emt 0:00:06]} 14. Kc2 {[%emt 0:00:07]} b6 {[%emt 0:00:26]} 15. g4 {[%emt 0:00:16]} Kb7 {[%emt 0:00:04]} 16. Rhg1 {[%emt 0:00:51]} Bb4 {[%emt 0:00:46]} 17. Bxf6 {[%emt 0:00:31]} gxf6 {[%emt 0:00:00]} 18. Bd3 {[%emt 0:00:23]} Ra5 {[%emt 0:00:22]} 19. Ne2 {[%emt 0:00:25]} Rc5 {[%emt 0:00:37]} 20. b3 {[%emt 0:01:14]} Ra8 {[%emt 0:00:06]} 21. Rb1 {[%emt 0:00:09]} h5 {[%emt 0:01:37]} 22. Nd4 {[%emt 0:00:22]} hxg4 {[%emt 0:00:13]} 23. hxg4 {[%emt 0:00:08]} Rca5 {[%emt 0:00:24]} 24. Bf5 {[%emt 0:01:35]} Re8 {[%emt 0:00:37]} 25. Rgd1 {[%emt 0:00:36]} axb3+ {[%emt 0:00:25]} 26. axb3 {[%emt 0:00:03]} Bc5 {[%emt 0:00:06]} 27. Bxe6 {[%emt 0:00:52]} Ra2+ {[%emt 0:00:40]} 28. Rb2 {[%emt 0:00:02]} Rxb2+ {[%emt 0:00:01]} 29. Kxb2 {[%emt 0:00:00]} fxe6 {[%emt 0:00:04]} 30. Kc3 {[%emt 0:00:06]} Bd6 {[%emt 0:00:08]} 31. Nf3 {[%emt 0:00:15]} Rh8 {[%emt 0:00:30]} 32. Kd3 {[%emt 0:00:05]} c5 {[%emt 0:00:03]} 33. Rg1 {[%emt 0:00:11]} Be7 {[%emt 0:00:08]} 34. Rg2 {[%emt 0:00:23]} Ra8 {[%emt 0:00:06]} 35. Rh2 {[%emt 0:00:04]} Ra2 {[%emt 0:00:13]} 36. Nd2 {[%emt 0:00:01]} Kc6 {[%emt 0:00:29]} 37. Rh7 {[%emt 0:00:02]} Bd8 {[%emt 0:00:00]} 38. f4 {[%emt 0:00:02]} Ra1 {[%emt 0:00:01]} 39. Rh8 {[%emt 0:00:02]} Kd7 {[%emt 0:00:02]} 40. Ne4 {[%emt 0:00:05]} Rb1 {[%emt 0:00:04]} 41. Kc2 {[%emt 0:00:04]} Re1 {[%emt 0:00:01]} 42. Kd2 {[%emt 0:00:01]} Rb1 {[%emt 0:00:01]} 43. Kc2 {[%emt 0:00:02]} Re1 {[%emt 0:00:01]} 44. Kd3 {[%emt 0:00:00]} Rb1 {[%emt 0:00:05]} 45. Nd2 {[%emt 0:00:00]} Rg1 {[%emt 0:00:02]} 46. Rg8 {[%emt 0:00:01]} Be7 {[%emt 0:00:04]} 47. Ne4 {[%emt 0:00:08]} Rd1+ {[%emt 0:00:04]} 48. Ke2 {[%emt 0:00:05]} Rb1 {[%emt 0:00:02]} 49. Nd2 {[%emt 0:00:00]} Rg1 {[%emt 0:00:06]} 50. Nf3 {[%emt 0:00:02]} Rb1 {[%emt 0:00:02]} 51. g5 {[%emt 0:00:00]} fxg5 {[%emt 0:00:08]} 52. fxg5 {[%emt 0:00:02]} Rxb3 {[%emt 0:00:05]} 53. g6 {[%emt 0:00:00]} Bf6 {[%emt 0:00:01]} 54. Rf8 {[%emt 0:00:01]} Ba1 {[%emt 0:00:25]} 55. g7 {[%emt 0:00:02]} Bxg7 {[%emt 0:00:01]} 56. Rf7+ {[%emt 0:00:00]} Kd6 {[%emt 0:00:02]} 57. Rxg7 {[%emt 0:00:00]} c6 {[%emt 0:00:03]} 58. Nd2 {[%emt 0:00:03]} Rb2 {[%emt 0:00:15]} 59. Kd3 {[%emt 0:00:01]} e5 {[%emt 0:00:00]} 60. Rg6+ {[%emt 0:00:10]} Kd7 {[%emt 0:00:01]} 61. Nf3 {[%emt 0:00:01]} Rb3+ {[%emt 0:00:04]} 62. Ke4 {[%emt 0:00:01]} 1-0

[Event "CCT Chessable Masters D-III 2024"]
[Site "Online"]
[Date "2024.02.02"]
[Round "1"]
[White "BilodeauA"]
[Black "bardiya_Daneshvar"]
[Result "1/2-1/2"]
[ECO "B06"]
[WhiteElo "2613"]
[BlackElo "2593"]
[Annotator "ChessBase"]
[PlyCount "140"]
[EventDate "2024.01.12"]
[EventType "k.o."]
[EventCountry "NET"]
[SourceTitle "playchess.com"]
[Source "ChessBase"]
[SourceQuality "1"]
[TimeControl "600+2"]

1. e4 {[%emt 0:00:04]} c5 {[%emt 0:00:04]} 2. Nf3 {[%emt 0:00:02]} g6 {[%emt 0:00:01]} 3. c3 {[%emt 0:00:03]} d5 {[%emt 0:00:01]} 4. exd5 {[%emt 0:00:06]} Qxd5 {[%emt 0:00:00]} 5. d4 {[%emt 0:00:02]} Bg7 {[%emt 0:00:00]} 6. Nbd2 {[%emt 0:00:01]} cxd4 {[%emt 0:00:03]} 7. Bc4 {[%emt 0:00:02]} Qd8 {[%emt 0:00:00]} 8. Nxd4 {[%emt 0:00:06]} Nf6 {[%emt 0:00:01]} 9. O-O {[%emt 0:00:06]} O-O {[%emt 0:00:01]} 10. N2f3 {[%emt 0:00:24]} Qc7 {[%emt 0:00:17]} 11. Qe2 {[%emt 0:00:14]} Bg4 {[%emt 0:00:02]} 12. h3 {[%emt 0:00:19]} Bxf3 {[%emt 0:00:02]} 13. Nxf3 {[%emt 0:00:00]} Nc6 {[%emt 0:00:02]} 14. Bg5 {[%emt 0:00:30]} e6 {[%emt 0:00:15]} 15. Rfd1 {[%emt 0:00:24]} Rad8 {[%emt 0:00:15]} 16. Qc2 {[%emt 0:01:10]} Rc8 {[%emt 0:00:24]} 17. Bf1 {[%emt 0:00:09]} Nd5 {[%emt 0:00:04]} 18. Re1 {[%emt 0:00:10]} a6 {[%emt 0:00:51]} 19. Rad1 {[%emt 0:00:09]} b5 {[%emt 0:00:08]} 20. Qe4 {[%emt 0:00:35]} h6 {[%emt 0:01:01]} 21. Bc1 {[%emt 0:00:01]} Nde7 {[%emt 0:00:17]} 22. Bf4 {[%emt 0:00:29]} Qb6 {[%emt 0:00:25]} 23. a3 {[%emt 0:00:23]} Rfd8 {[%emt 0:00:24]} 24. h4 {[%emt 0:01:08]} Nd5 {[%emt 0:00:45]} 25. Bc1 {[%emt 0:00:15]} Nce7 {[%emt 0:00:27]} 26. Ne5 {[%emt 0:00:07]} Nf5 {[%emt 0:00:13]} 27. h5 {[%emt 0:00:53]} g5 {[%emt 0:00:41]} 28. Qf3 {[%emt 0:00:08]} Qc7 {[%emt 0:00:15]} 29. Ng4 {[%emt 0:00:08]} Nf4 {[%emt 0:01:18]} 30. g3 {[%emt 0:00:05]} Nd5 {[%emt 0:00:11]} 31. Bd3 {[%emt 0:00:03]} Nde7 {[%emt 0:00:06]} 32. Bb1 {[%emt 0:00:16]} Rxd1 {[%emt 0:00:06]} 33. Rxd1 {[%emt 0:00:01]} Rd8 {[%emt 0:00:01]} 34. Rxd8+ {[%emt 0:00:22]} Qxd8 {[%emt 0:00:00]} 35. Qd3 {[%emt 0:00:02]} Qc7 {[%emt 0:00:25]} 36. Ne3 {[%emt 0:00:04]} Kf8 {[%emt 0:00:05]} 37. Qe4 {[%emt 0:00:05]} Nd6 {[%emt 0:00:11]} 38. Qa8+ {[%emt 0:00:11]} Qc8 {[%emt 0:00:01]} 39. Qxc8+ {[%emt 0:00:28]} Nexc8 {[%emt 0:00:00]} 40. Bd3 {[%emt 0:00:06]} Nb6 {[%emt 0:00:16]} 41. Kg2 {[%emt 0:00:05]} f5 {[%emt 0:00:14]} 42. g4 {[%emt 0:00:19]} f4 {[%emt 0:00:03]} 43. Nc2 {[%emt 0:00:06]} Nbc4 {[%emt 0:00:19]} 44. f3 {[%emt 0:00:26]} Nb7 {[%emt 0:00:22]} 45. Nb4 {[%emt 0:00:03]} Nc5 {[%emt 0:00:04]} 46. Bc2 {[%emt 0:00:06]} Ke8 {[%emt 0:00:19]} 47. Kf2 {[%emt 0:00:05]} Kd7 {[%emt 0:00:05]} 48. Ke2 {[%emt 0:00:01]} Kd6 {[%emt 0:00:03]} 49. Nd3 {[%emt 0:00:04]} a5 {[%emt 0:00:13]} 50. Nxc5 {[%emt 0:00:15]} Kxc5 {[%emt 0:00:00]} 51. a4 {[%emt 0:00:01]} b4 {[%emt 0:00:12]} 52. cxb4+ {[%emt 0:00:03]} axb4 {[%emt 0:00:07]} 53. b3 {[%emt 0:00:01]} Na5 {[%emt 0:00:01]} 54. Bd2 {[%emt 0:00:16]} Bc3 {[%emt 0:00:04]} 55. Kd3 {[%emt 0:00:07]} Bxd2 {[%emt 0:00:01]} 56. Kxd2 {[%emt 0:00:00]} Kd4 {[%emt 0:00:00]} 57. Bd1 {[%emt 0:00:03]} Nb7 {[%emt 0:00:03]} 58. Be2 {[%emt 0:00:01]} Na5 {[%emt 0:00:04]} 59. Bd1 {[%emt 0:00:01]} e5 {[%emt 0:00:03]} 60. Bc2 {[%emt 0:00:00]} Nb7 {[%emt 0:00:00]} 61. Be4 {[%emt 0:00:02]} Nc5 {[%emt 0:00:03]} 62. Bc2 {[%emt 0:00:02]} e4 {[%emt 0:00:02]} 63. fxe4 {[%emt 0:00:01]} Nxe4+ {[%emt 0:00:03]} 64. Bxe4 {[%emt 0:00:01]} Kxe4 {[%emt 0:00:00]} 65. Ke2 {[%emt 0:00:03]} Kd4 {[%emt 0:00:01]} 66. Kf3 {[%emt 0:00:03]} Kd5 {[%emt 0:00:00]} 67. Kf2 {[%emt 0:00:02]} Kc5 {[%emt 0:00:01]} 68. Kf3 {[%emt 0:00:00]} Kd5 {[%emt 0:00:00]} 69. Kf2 {[%emt 0:00:01]} Kc5 {[%emt 0:00:01]} 70. Kf3 {[%emt 0:00:00]} Kd5 {[%emt 0:00:00]} 1/2-1/2

[Event "CCT Chessable Masters D-III 2024"]
[Site "Online"]
[Date "2024.02.02"]
[Round "1"]
[White "Paravyan, David"]
[Black "Demchenko, Anton"]
[Result "1-0"]
[ECO "C24"]
[WhiteElo "2612"]
[BlackElo "2609"]
[Annotator "ChessBase"]
[PlyCount "163"]
[EventDate "2024.01.12"]
[EventType "k.o."]
[EventCountry "NET"]
[SourceTitle "playchess.com"]
[Source "ChessBase"]
[SourceQuality "1"]
[TimeControl "600+2"]

1. e4 {[%emt 0:00:03]} e5 {[%emt 0:00:06]} 2. Nf3 {[%emt 0:00:01]} Nc6 {[%emt 0:00:01]} 3. Bc4 {[%emt 0:00:03]} Nf6 {[%emt 0:00:03]} 4. d3 {[%emt 0:00:01]} d5 {[%emt 0:00:29]} 5. exd5 {[%emt 0:00:02]} Nxd5 {[%emt 0:00:00]} 6. O-O {[%emt 0:00:01]} Nb6 {[%emt 0:00:01]} 7. Bb5 {[%emt 0:00:09]} Bd6 {[%emt 0:00:01]} 8. Bxc6+ {[%emt 0:01:29]} bxc6 {[%emt 0:00:02]} 9. Nxe5 {[%emt 0:00:01]} Bxe5 {[%emt 0:00:06]} 10. Re1 {[%emt 0:00:00]} Qe7 {[%emt 0:00:06]} 11. f4 {[%emt 0:01:22]} Bd4+ {[%emt 0:00:08]} 12. Kh1 {[%emt 0:00:01]} Be6 {[%emt 0:00:00]} 13. f5 {[%emt 0:00:00]} O-O {[%emt 0:00:02]} 14. fxe6 {[%emt 0:00:12]} Nd5 {[%emt 0:00:02]} 15. c4 {[%emt 0:01:46]} Nf6 {[%emt 0:00:05]} 16. Nc3 {[%emt 0:00:10]} fxe6 {[%emt 0:00:17]} 17. Be3 {[%emt 0:00:03]} Rad8 {[%emt 0:00:29]} 18. Bxd4 {[%emt 0:00:02]} Rxd4 {[%emt 0:00:02]} 19. Qe2 {[%emt 0:00:01]} Re8 {[%emt 0:02:10]} 20. Rf1 {[%emt 0:01:46]} Qd6 {[%emt 0:00:42]} 21. Rae1 {[%emt 0:00:16]} Ng4 {[%emt 0:01:58]} 22. g3 {[%emt 0:00:05]} Nf6 {[%emt 0:00:01]} 23. Rf3 {[%emt 0:00:21]} e5 {[%emt 0:00:15]} 24. Re3 {[%emt 0:00:16]} Rd8 {[%emt 0:00:22]} 25. Qf3 {[%emt 0:00:29]} Rf8 {[%emt 0:00:17]} 26. Rxe5 {[%emt 0:01:09]} Rxd3 {[%emt 0:00:33]} 27. Qf5 {[%emt 0:00:06]} Rd2 {[%emt 0:00:19]} 28. R5e2 {[%emt 0:00:04]} h5 {[%emt 0:01:11]} 29. Rxd2 {[%emt 0:00:33]} Qxd2 {[%emt 0:00:01]} 30. Qe6+ {[%emt 0:00:00]} Kh8 {[%emt 0:00:04]} 31. Qe2 {[%emt 0:00:03]} Rd8 {[%emt 0:00:28]} 32. Qxd2 {[%emt 0:00:07]} Rxd2 {[%emt 0:00:00]} 33. Re2 {[%emt 0:00:08]} Rd4 {[%emt 0:00:00]} 34. b3 {[%emt 0:00:03]} Kg8 {[%emt 0:00:03]} 35. Kg2 {[%emt 0:00:01]} Kf7 {[%emt 0:00:01]} 36. h3 {[%emt 0:00:06]} Rd3 {[%emt 0:00:17]} 37. Na4 {[%emt 0:00:01]} g5 {[%emt 0:00:05]} 38. Nc5 {[%emt 0:00:01]} Rd6 {[%emt 0:00:05]} 39. Kf3 {[%emt 0:00:03]} g4+ {[%emt 0:00:10]} 40. hxg4 {[%emt 0:00:00]} Nxg4 {[%emt 0:00:01]} 41. Kf4 {[%emt 0:00:06]} Nf6 {[%emt 0:00:10]} 42. Ne4 {[%emt 0:00:09]} Rd3 {[%emt 0:00:07]} 43. Nxf6 {[%emt 0:00:03]} Kxf6 {[%emt 0:00:00]} 44. Rh2 {[%emt 0:00:02]} Kg6 {[%emt 0:00:01]} 45. Re2 {[%emt 0:00:01]} Kf6 {[%emt 0:00:02]} 46. Rf2 {[%emt 0:00:02]} Rc3 {[%emt 0:00:03]} 47. Rh2 {[%emt 0:00:03]} Kg6 {[%emt 0:00:01]} 48. Rd2 {[%emt 0:00:01]} Rc1 {[%emt 0:00:08]} 49. Rd7 {[%emt 0:00:01]} Rf1+ {[%emt 0:00:01]} 50. Ke3 {[%emt 0:00:01]} Re1+ {[%emt 0:00:01]} 51. Kf3 {[%emt 0:00:01]} Rf1+ {[%emt 0:00:01]} 52. Ke3 {[%emt 0:00:05]} Re1+ {[%emt 0:00:01]} 53. Kf3 {[%emt 0:00:04]} Rf1+ {[%emt 0:00:01]} 54. Kg2 {[%emt 0:00:01]} Ra1 {[%emt 0:00:01]} 55. Rxc7 {[%emt 0:00:00]} Rxa2+ {[%emt 0:00:01]} 56. Kf3 {[%emt 0:00:05]} Ra6 {[%emt 0:00:04]} 57. c5 {[%emt 0:00:02]} Kg5 {[%emt 0:00:04]} 58. Ke4 {[%emt 0:00:02]} Ra3 {[%emt 0:00:04]} 59. b4 {[%emt 0:00:01]} Ra4 {[%emt 0:00:01]} 60. Ke5 {[%emt 0:00:03]} Rxb4 {[%emt 0:00:01]} 61. Rxc6 {[%emt 0:00:01]} Rb3 {[%emt 0:00:02]} 62. Rc8 {[%emt 0:00:01]} Kg4 {[%emt 0:00:03]} 63. Rg8+ {[%emt 0:00:02]} Kh3 {[%emt 0:00:02]} 64. c6 {[%emt 0:00:00]} Rc3 {[%emt 0:00:05]} 65. Kd6 {[%emt 0:00:00]} Rd3+ {[%emt 0:00:00]} 66. Ke6 {[%emt 0:00:01]} Rc3 {[%emt 0:00:01]} 67. Kd7 {[%emt 0:00:01]} Rd3+ {[%emt 0:00:00]} 68. Kc8 {[%emt 0:00:02]} a5 {[%emt 0:00:01]} 69. c7 {[%emt 0:00:05]} a4 {[%emt 0:00:01]} 70. Kb7 {[%emt 0:00:01]} Rb3+ {[%emt 0:00:01]} 71. Kc6 {[%emt 0:00:05]} Rc3+ {[%emt 0:00:00]} 72. Kd6 {[%emt 0:00:02]} Rd3+ {[%emt 0:00:01]} 73. Ke5 {[%emt 0:00:01]} Rc3 {[%emt 0:00:02]} 74. c8=Q+ {[%emt 0:00:01]} Rxc8 {[%emt 0:00:01]} 75. Rxc8 {[%emt 0:00:00]} Kxg3 {[%emt 0:00:00]} 76. Ke4 {[%emt 0:00:08]} h4 {[%emt 0:00:01]} 77. Ke3 {[%emt 0:00:02]} h3 {[%emt 0:00:11]} 78. Rg8+ {[%emt 0:00:01]} Kh2 {[%emt 0:00:00]} 79. Kf2 {[%emt 0:00:01]} Kh1 {[%emt 0:00:02]} 80. Rg1+ {[%emt 0:00:02]} Kh2 {[%emt 0:00:01]} 81. Rg3 {[%emt 0:00:00]} a3 {[%emt 0:00:01]} 82. Rxa3 {[%emt 0:00:01]} 1-0

[Event "CCT Chessable Masters D-III 2024"]
[Site "Online"]
[Date "2024.02.02"]
[Round "1"]
[White "Demchenko, Anton"]
[Black "Paravyan, David"]
[Result "1-0"]
[ECO "C24"]
[WhiteElo "2609"]
[BlackElo "2612"]
[Annotator "ChessBase"]
[PlyCount "47"]
[EventDate "2024.01.12"]
[EventType "k.o."]
[EventCountry "NET"]
[SourceTitle "playchess.com"]
[Source "ChessBase"]
[SourceQuality "1"]
[TimeControl "600+2"]

1. e4 {[%emt 0:00:02]} e5 {[%emt 0:00:02]} 2. Bc4 {[%emt 0:00:01]} Nf6 {[%emt 0:00:03]} 3. d3 {[%emt 0:00:01]} c6 {[%emt 0:00:01]} 4. Nf3 {[%emt 0:00:02]} d5 {[%emt 0:00:00]} 5. Bb3 {[%emt 0:00:01]} Bd6 {[%emt 0:00:09]} 6. exd5 {[%emt 0:00:03]} Nxd5 {[%emt 0:00:00]} 7. O-O {[%emt 0:00:01]} O-O {[%emt 0:00:02]} 8. Re1 {[%emt 0:00:01]} Nd7 {[%emt 0:00:01]} 9. Bg5 {[%emt 0:00:05]} Qc7 {[%emt 0:00:48]} 10. d4 {[%emt 0:02:46]} exd4 {[%emt 0:00:19]} 11. Qxd4 {[%emt 0:00:02]} h6 {[%emt 0:01:05]} 12. Bh4 {[%emt 0:00:55]} Bc5 {[%emt 0:00:02]} 13. Qd2 {[%emt 0:00:33]} N7f6 {[%emt 0:02:04]} 14. c4 {[%emt 0:00:47]} Nf4 {[%emt 0:00:02]} 15. Bxf6 {[%emt 0:00:22]} gxf6 {[%emt 0:00:00]} 16. Re4 {[%emt 0:00:13]} Ng6 {[%emt 0:00:33]} 17. Qxh6 {[%emt 0:00:29]} Bf5 {[%emt 0:00:05]} 18. Nc3 {[%emt 0:00:40]} Bxe4 {[%emt 0:02:29]} 19. Nxe4 {[%emt 0:00:03]} Qe7 {[%emt 0:00:04]} 20. Ng3 {[%emt 0:00:52]} Bxf2+ {[%emt 0:02:12]} 21. Kxf2 {[%emt 0:00:05]} Rfe8 {[%emt 0:00:00]} 22. Nh5 {[%emt 0:00:40]} Qe2+ {[%emt 0:00:01]} 23. Kg3 {[%emt 0:00:10]} Re6 {[%emt 0:00:02]} 24. Qg7# {[%emt 0:00:02]} 1-0

[Event "CCT Chessable Masters D-III 2024"]
[Site "Online"]
[Date "2024.02.02"]
[Round "1"]
[White "Dreev, Aleksey"]
[Black "Lysyj, Igor"]
[Result "1/2-1/2"]
[ECO "E39"]
[WhiteElo "2606"]
[BlackElo "2589"]
[Annotator "ChessBase"]
[PlyCount "137"]
[EventDate "2024.01.12"]
[EventType "k.o."]
[EventCountry "NET"]
[SourceTitle "playchess.com"]
[Source "ChessBase"]
[SourceQuality "1"]
[TimeControl "600+2"]

1. d4 {[%emt 0:00:02]} Nf6 {[%emt 0:00:04]} 2. c4 {[%emt 0:00:03]} e6 {[%emt 0:00:01]} 3. Nc3 {[%emt 0:00:00]} Bb4 {[%emt 0:00:02]} 4. Qc2 {[%emt 0:00:01]} c5 {[%emt 0:00:00]} 5. dxc5 {[%emt 0:00:02]} O-O {[%emt 0:00:02]} 6. a3 {[%emt 0:00:09]} Bxc5 {[%emt 0:00:01]} 7. Nf3 {[%emt 0:00:00]} d5 {[%emt 0:00:02]} 8. e3 {[%emt 0:00:26]} dxc4 {[%emt 0:00:10]} 9. Bxc4 {[%emt 0:00:02]} b6 {[%emt 0:00:02]} 10. Ne4 {[%emt 0:00:20]} Nxe4 {[%emt 0:00:13]} 11. Qxe4 {[%emt 0:00:02]} Ba6 {[%emt 0:00:01]} 12. Bxa6 {[%emt 0:00:43]} Nxa6 {[%emt 0:00:03]} 13. b4 {[%emt 0:00:15]} Qf6 {[%emt 0:01:55]} 14. Rb1 {[%emt 0:00:05]} Be7 {[%emt 0:00:02]} 15. Bb2 {[%emt 0:01:52]} Qg6 {[%emt 0:00:03]} 16. Qxg6 {[%emt 0:00:05]} hxg6 {[%emt 0:00:02]} 17. Rc1 {[%emt 0:00:30]} Rac8 {[%emt 0:00:05]} 18. Ke2 {[%emt 0:00:08]} Nb8 {[%emt 0:01:31]} 19. Rhd1 {[%emt 0:00:42]} f6 {[%emt 0:00:21]} 20. Nd4 {[%emt 0:00:27]} Kf7 {[%emt 0:00:20]} 21. Nb5 {[%emt 0:00:02]} a6 {[%emt 0:00:09]} 22. Na7 {[%emt 0:00:01]} Rxc1 {[%emt 0:00:57]} 23. Rxc1 {[%emt 0:00:01]} e5 {[%emt 0:00:09]} 24. Rc7 {[%emt 0:00:51]} Ke6 {[%emt 0:00:03]} 25. Nc8 {[%emt 0:00:05]} Bd8 {[%emt 0:01:19]} 26. Rxg7 {[%emt 0:00:03]} Nd7 {[%emt 0:00:54]} 27. Rxg6 {[%emt 0:00:47]} Bc7 {[%emt 0:00:10]} 28. Na7 {[%emt 0:00:02]} Bd6 {[%emt 0:00:19]} 29. Rg4 {[%emt 0:00:50]} Ra8 {[%emt 0:00:52]} 30. Nc6 {[%emt 0:00:03]} Kd5 {[%emt 0:00:20]} 31. b5 {[%emt 0:00:07]} axb5 {[%emt 0:00:01]} 32. Nb4+ {[%emt 0:00:03]} Ke6 {[%emt 0:00:01]} 33. h4 {[%emt 0:00:22]} Rc8 {[%emt 0:00:11]} 34. h5 {[%emt 0:00:36]} Rh8 {[%emt 0:00:02]} 35. Rh4 {[%emt 0:00:04]} f5 {[%emt 0:00:02]} 36. h6 {[%emt 0:00:28]} Rh7 {[%emt 0:00:15]} 37. Nd3 {[%emt 0:00:17]} Bf8 {[%emt 0:00:05]} 38. e4 {[%emt 0:00:24]} Rxh6 {[%emt 0:00:07]} 39. exf5+ {[%emt 0:00:08]} Kxf5 {[%emt 0:00:01]} 40. g4+ {[%emt 0:00:04]} Ke6 {[%emt 0:00:02]} 41. Rh5 {[%emt 0:00:02]} Rxh5 {[%emt 0:00:07]} 42. gxh5 {[%emt 0:00:01]} Nf6 {[%emt 0:00:04]} 43. Nxe5 {[%emt 0:00:06]} Nxh5 {[%emt 0:00:01]} 44. Nc6 {[%emt 0:00:02]} Nf4+ {[%emt 0:00:02]} 45. Ke3 {[%emt 0:00:05]} Nd5+ {[%emt 0:00:02]} 46. Ke4 {[%emt 0:00:01]} Nf6+ {[%emt 0:00:01]} 47. Kd3 {[%emt 0:00:01]} Nd5 {[%emt 0:00:02]} 48. Nd4+ {[%emt 0:00:02]} Ke5 {[%emt 0:00:04]} 49. Nxb5+ {[%emt 0:00:00]} Kf4 {[%emt 0:00:00]} 50. Bd4 {[%emt 0:00:02]} Kf3 {[%emt 0:00:02]} 51. Kc4 {[%emt 0:00:01]} Nf4 {[%emt 0:00:02]} 52. a4 {[%emt 0:00:01]} Nh3 {[%emt 0:00:06]} 53. Bxb6 {[%emt 0:00:01]} Nxf2 {[%emt 0:00:02]} 54. a5 {[%emt 0:00:02]} Ng4 {[%emt 0:00:04]} 55. Bc7 {[%emt 0:00:04]} Ne3+ {[%emt 0:00:02]} 56. Kb3 {[%emt 0:00:03]} Nd5 {[%emt 0:00:05]} 57. Bd8 {[%emt 0:00:03]} Ke4 {[%emt 0:00:04]} 58. a6 {[%emt 0:00:01]} Bc5 {[%emt 0:00:02]} 59. Kc4 {[%emt 0:00:00]} Bg1 {[%emt 0:00:01]} 60. Nd6+ {[%emt 0:00:04]} Ke5 {[%emt 0:00:01]} 61. Nc8 {[%emt 0:00:01]} Ke6 {[%emt 0:00:01]} 62. Ba5 {[%emt 0:00:03]} Kd7 {[%emt 0:00:02]} 63. Kxd5 {[%emt 0:00:02]} Kxc8 {[%emt 0:00:01]} 64. Kc6 {[%emt 0:00:01]} Bf2 {[%emt 0:00:01]} 65. Bc7 {[%emt 0:00:02]} Bg1 {[%emt 0:00:02]} 66. Bb6 {[%emt 0:00:02]} Bxb6 {[%emt 0:00:01]} 67. Kxb6 {[%emt 0:00:01]} Kb8 {[%emt 0:00:01]} 68. a7+ {[%emt 0:00:01]} Ka8 {[%emt 0:00:00]} 69. Ka6 {[%emt 0:00:01]} 1/2-1/2

[Event "CCT Chessable Masters D-III 2024"]
[Site "Online"]
[Date "2024.02.02"]
[Round "1"]
[White "Dreev, Aleksey"]
[Black "Lysyj, Igor"]
[Result "0-1"]
[ECO "E06"]
[WhiteElo "2606"]
[BlackElo "2589"]
[Annotator "ChessBase"]
[PlyCount "136"]
[EventDate "2024.01.12"]
[EventType "k.o."]
[EventCountry "NET"]
[SourceTitle "playchess.com"]
[Source "ChessBase"]
[SourceQuality "1"]
[TimeControl "600+2"]

1. d4 {[%emt 0:00:06]} Nf6 {[%emt 0:02:00]} 2. Nf3 {[%emt 0:00:04]} d5 {[%emt 0:00:03]} 3. g3 {[%emt 0:00:04]} e6 {[%emt 0:00:03]} 4. Bg2 {[%emt 0:00:03]} Be7 {[%emt 0:00:03]} 5. O-O {[%emt 0:00:03]} O-O {[%emt 0:00:03]} 6. Nbd2 {[%emt 0:00:13]} c5 {[%emt 0:00:03]} 7. dxc5 {[%emt 0:00:14]} Bxc5 {[%emt 0:00:04]} 8. a3 {[%emt 0:00:02]} a5 {[%emt 0:00:03]} 9. c4 {[%emt 0:00:04]} Nc6 {[%emt 0:00:03]} 10. cxd5 {[%emt 0:00:14]} exd5 {[%emt 0:00:03]} 11. Nb3 {[%emt 0:00:27]} Bb6 {[%emt 0:00:04]} 12. Nbd4 {[%emt 0:00:02]} Re8 {[%emt 0:00:06]} 13. b3 {[%emt 0:00:07]} Ne4 {[%emt 0:00:05]} 14. Bb2 {[%emt 0:00:06]} Bg4 {[%emt 0:00:04]} 15. Qd3 {[%emt 0:00:35]} Rc8 {[%emt 0:00:32]} 16. Rac1 {[%emt 0:00:22]} Qe7 {[%emt 0:00:32]} 17. e3 {[%emt 0:00:22]} Nxd4 {[%emt 0:00:55]} 18. Nxd4 {[%emt 0:00:10]} Bd7 {[%emt 0:00:04]} 19. Rfd1 {[%emt 0:00:34]} Qf6 {[%emt 0:00:05]} 20. Rc2 {[%emt 0:00:47]} Rxc2 {[%emt 0:00:05]} 21. Qxc2 {[%emt 0:00:04]} Rc8 {[%emt 0:00:04]} 22. Qe2 {[%emt 0:00:08]} Qe7 {[%emt 0:00:14]} 23. Qd3 {[%emt 0:00:34]} h5 {[%emt 0:00:09]} 24. Ne2 {[%emt 0:00:17]} Bg4 {[%emt 0:00:17]} 25. f3 {[%emt 0:00:38]} Qg5 {[%emt 0:00:31]} 26. Nf4 {[%emt 0:00:26]} Bxf3 {[%emt 0:00:35]} 27. Bxf3 {[%emt 0:00:07]} Nxg3 {[%emt 0:00:03]} 28. Ng2 {[%emt 0:01:25]} Nf5 {[%emt 0:00:35]} 29. Qxd5 {[%emt 0:00:06]} Rc2 {[%emt 0:00:12]} 30. Bd4 {[%emt 0:00:38]} Bxd4 {[%emt 0:00:43]} 31. exd4 {[%emt 0:00:06]} Rc1 {[%emt 0:01:00]} 32. Qe4 {[%emt 0:00:50]} g6 {[%emt 0:00:06]} 33. Qf4 {[%emt 0:00:15]} Rxd1+ {[%emt 0:00:05]} 34. Bxd1 {[%emt 0:00:02]} Qd8 {[%emt 0:00:04]} 35. Be2 {[%emt 0:00:07]} Nxd4 {[%emt 0:00:05]} 36. Bc4 {[%emt 0:00:03]} Nf5 {[%emt 0:00:04]} 37. a4 {[%emt 0:00:08]} Qd1+ {[%emt 0:00:05]} 38. Qf1 {[%emt 0:00:04]} Qd4+ {[%emt 0:00:04]} 39. Qf2 {[%emt 0:00:02]} Qd1+ {[%emt 0:00:04]} 40. Qe1 {[%emt 0:00:03]} Qd4+ {[%emt 0:00:03]} 41. Kf1 {[%emt 0:00:06]} Qd8 {[%emt 0:00:12]} 42. Ne3 {[%emt 0:00:06]} Nd4 {[%emt 0:00:09]} 43. Qf2 {[%emt 0:00:03]} Qe7 {[%emt 0:00:08]} 44. Nd5 {[%emt 0:00:03]} Qe5 {[%emt 0:00:04]} 45. Nf6+ {[%emt 0:00:04]} Kg7 {[%emt 0:00:03]} 46. Ne8+ {[%emt 0:00:05]} Qxe8 {[%emt 0:00:05]} 47. Qxd4+ {[%emt 0:00:02]} Kh6 {[%emt 0:00:04]} 48. Qf6 {[%emt 0:00:04]} Qe4 {[%emt 0:00:07]} 49. Qxf7 {[%emt 0:00:03]} Qh1+ {[%emt 0:00:03]} 50. Ke2 {[%emt 0:00:03]} Qxh2+ {[%emt 0:00:03]} 51. Kd3 {[%emt 0:00:03]} Qd6+ {[%emt 0:00:04]} 52. Ke4 {[%emt 0:00:02]} Kg5 {[%emt 0:00:04]} 53. Qf2 {[%emt 0:00:04]} Qe7+ {[%emt 0:00:04]} 54. Kd3 {[%emt 0:00:04]} Qd6+ {[%emt 0:00:03]} 55. Kc2 {[%emt 0:00:02]} Qe5 {[%emt 0:00:04]} 56. Bd3 {[%emt 0:00:03]} Kh6 {[%emt 0:00:04]} 57. Qd2+ {[%emt 0:00:04]} g5 {[%emt 0:00:05]} 58. Qf2 {[%emt 0:00:02]} g4 {[%emt 0:00:04]} 59. Qd2+ {[%emt 0:00:03]} Kg7 {[%emt 0:00:04]} 60. Qf2 {[%emt 0:00:04]} Qc7+ {[%emt 0:00:03]} 61. Kd2 {[%emt 0:00:04]} Qe5 {[%emt 0:00:03]} 62. Qb6 {[%emt 0:00:03]} Qb2+ {[%emt 0:00:03]} 63. Ke3 {[%emt 0:00:03]} Qe5+ {[%emt 0:00:03]} 64. Be4 {[%emt 0:00:02]} Qg5+ {[%emt 0:00:03]} 65. Kd3 {[%emt 0:00:03]} Qf6 {[%emt 0:00:04]} 66. Qxb7+ {[%emt 0:00:03]} Kh6 {[%emt 0:00:03]} 67. Qb8 {[%emt 0:00:03]} Kg5 {[%emt 0:00:04]} 68. Qg8+ {[%emt 0:00:05]} Kh4 {[%emt 0:00:03]} 0-1